bitfinex/quotes_SOLUSD_20230116
["timestamp","ask_amount","ask_price","bid_price","bid_amount"]
[1673830412282,20.0,22.917,22.895,41.46196354]
[1673830412611,20.0,22.917,22.895,85.32548159]
[1673830412839,32.74,22.916,22.895,41.46196354]
[1673830413016,20.0,22.915,22.895,41.46196354]
[1673830413760,20.0,22.917,22.895,41.46196354]
[1673830413962,49.74,22.916,22.895,41.46196354]
[1673830414167,20.0,22.915,22.895,41.46196354]
[1673830414822,20.0,22.917,22.895,41.46196354]
[1673830415770,17.0,22.916,22.895,41.46196354]
[1673830415986,17.0,22.916,22.895,85.32548159]
[1673830416505,32.74,22.915,22.895,41.46196354]
[1673830416825,17.0,22.914,22.895,41.46196354]
[1673830417136,17.0,22.915,22.897,20.0]
[1673830417460,49.74,22.916,22.897,20.0]
[1673830417768,17.0,22.916,22.897,20.0]
[1673830418940,17.0,22.916,22.897,41.46196354]
[1673830419322,14.5,22.916,22.897,41.46196354]
[1673830419537,14.5,22.916,22.897,20.0]
[1673830420721,14.5,22.916,22.897,41.46196354]
[1673830421031,14.5,22.916,22.898,31.32734368]
[1673830421218,17.468572,22.922,22.897,85.32548159]
[1673830421423,20.0,22.919,22.898,135.24676354]
[1673830421755,20.0,22.919,22.899,21.46196354]
[1673830421968,20.0,22.919,22.9,20.0]
[1673830422496,17.0,22.918,22.9,20.0]
[1673830422706,20.0,22.917,22.9,20.0]
[1673830423742,20.0,22.919,22.901,31.32734368]
[1673830423955,20.0,22.917,22.898,20.0]
[1673830424169,52.74,22.916,22.898,20.0]
[1673830424401,17.0,22.915,22.897,20.0]
[1673830424596,32.75,22.914,22.897,20.0]
[1673830424808,17.0,22.913,22.897,20.0]
[1673830425132,17.0,22.913,22.895,20.0]
[1673830425531,17.0,22.914,22.892,139.3051]
[1673830425742,32.75,22.913,22.892,139.3051]
[1673830425967,17.0,22.912,22.892,139.3051]
[1673830426385,17.27,22.91,22.891,20.0]
[1673830426598,52.75,22.909,22.894,31.32734368]
[1673830426806,69.75,22.909,22.888,402.0]
[1673830427021,20.0,22.908,22.888,402.0]
[1673830427215,69.76,22.907,22.883,21.46196354]
[1673830427422,69.76,22.907,22.884,21.46196354]
[1673830427839,69.76,22.907,22.885,20.0]
[1673830428282,17.38,22.9,22.885,20.0]
[1673830428474,32.77,22.899,22.885,20.0]
[1673830428801,20.0,22.898,22.883,20.0]
[1673830429006,17.0,22.897,22.881,114.2158]
[1673830429222,20.0,22.896,22.881,114.2158]
[1673830429432,17.0,22.895,22.881,114.2158]
[1673830429967,17.0,22.895,22.881,134.2158]
[1673830430282,17.0,22.895,22.882,20.0]
[1673830431124,20.0,22.896,22.882,20.0]
[1673830431331,20.0,22.898,22.882,20.0]
[1673830431520,17.0,22.897,22.882,20.0]
[1673830431731,20.0,22.896,22.882,20.0]
[1673830432389,20.0,22.898,22.882,20.0]
[1673830432600,17.0,22.897,22.882,20.0]
[1673830432791,20.0,22.896,22.882,20.0]
[1673830433212,17.4,22.89,22.872,317.85186222]
[1673830433420,17.0,22.889,22.872,317.85186222]
[1673830433631,17.0,22.889,22.873,20.0]
[1673830433829,17.4,22.89,22.873,20.0]
[1673830434589,32.77,22.895,22.874,21.46196354]
[1673830434789,20.0,22.897,22.875,20.0]
[1673830435000,17.0,22.896,22.875,37.0]
[1673830435215,17.0,22.897,22.876,21.46196354]
[1673830435427,20.0,22.898,22.876,21.46196354]
[1673830435752,17.0,22.897,22.877,20.0]
[1673830435948,20.0,22.896,22.877,20.0]
[1673830436165,20.0,22.896,22.879,20.0]
[1673830436485,20.0,22.896,22.879,41.46196354]
[1673830436672,20.0,22.897,22.88,116.7602]
[1673830436882,20.0,22.897,22.881,20.0]
[1673830437092,20.0,22.899,22.881,41.46196354]
[1673830437416,17.0,22.898,22.881,20.0]
[1673830437625,20.0,22.897,22.881,20.0]
[1673830437848,17.0,22.896,22.881,20.0]
[1673830438057,49.77,22.896,22.881,20.0]
[1673830438464,49.77,22.896,22.879,20.0]
[1673830439616,32.77,22.896,22.879,20.0]
[1673830440261,20.0,22.897,22.879,20.0]
[1673830440472,20.0,22.898,22.88,114.717]
[1673830440687,32.77,22.897,22.881,20.0]
[1673830440894,32.77,22.899,22.881,20.0]
[1673830441113,32.76,22.904,22.882,20.0]
[1673830441306,113.9345,22.905,22.882,41.46196354]
[1673830441516,113.9345,22.905,22.883,21.46196354]
[1673830441845,113.9345,22.905,22.884,20.0]
[1673830442241,32.76,22.904,22.884,20.0]
[1673830442457,17.29,22.9,22.884,20.0]
[1673830442669,17.0,22.899,22.884,20.0]
[1673830443505,17.4,22.91,22.884,20.0]
[1673830443709,17.4,22.91,22.886,20.0]
[1673830443956,17.4,22.91,22.887,20.0]
[1673830444268,17.4,22.91,22.887,41.46196354]
[1673830444449,17.4,22.91,22.888,38.46196354]
[1673830444665,32.74,22.919,22.891,20.0]
[1673830444888,32.74,22.919,22.892,17.0]
[1673830445099,20.0,22.918,22.893,20.0]
[1673830445303,32.74,22.917,22.893,71.72755388]
[1673830445520,20.0,22.916,22.894,112.2194]
[1673830445835,20.0,22.916,22.895,50.26559034]
[1673830446237,20.0,22.918,22.896,30.26559034]
[1673830446479,20.0,22.918,22.897,17.0]
[1673830446683,20.0,22.918,22.898,20.0]
[1673830446867,20.0,22.919,22.898,71.72755388]
[1673830447077,20.0,22.919,22.899,54.41422055]
[1673830447511,20.0,22.919,22.9,32.95225701]
[1673830447832,20.0,22.919,22.901,20.0]
[1673830448236,20.0,22.919,22.901,52.95225701]
[1673830448981,32.73,22.923,22.901,52.95225701]
[1673830449182,76.1871,22.924,22.902,41.46196354]
[1673830449399,17.466729,22.925,22.902,41.46196354]
[1673830449728,17.466729,22.925,22.903,20.0]
[1673830450266,32.73,22.924,22.903,20.0]
[1673830450453,17.0,22.923,22.903,20.0]
[1673830450858,17.0,22.923,22.903,52.95225701]
[1673830451274,49.73,22.924,22.903,52.95225701]
[1673830451700,32.73,22.924,22.903,52.95225701]
[1673830451934,17.466729,22.925,22.903,20.0]
[1673830452146,17.466729,22.925,22.903,41.46196354]
[1673830452328,17.466729,22.925,22.904,109.6839]
[1673830452543,25.9,22.91,22.901,20.0]
[1673830452762,52.75,22.909,22.896,20.0]
[1673830452976,52.75,22.909,22.891,20.0]
[1673830452977,74.21196354,22.909,22.891,20.0]
[1673830453191,28.52942291,22.908,22.888,117.9913]
[1673830453506,52.76,22.907,22.888,117.9913]
[1673830453715,17.0,22.906,22.889,20.0]
[1673830453911,32.76,22.905,22.889,20.0]
[1673830454349,21.46196354,22.905,22.889,20.0]
[1673830454553,25.98,22.92,22.889,41.46196354]
[1673830454554,32.75,22.914,22.889,41.46196354]
[1673830454881,32.74,22.918,22.89,25.9]
[1673830455073,20.0,22.917,22.89,49.75286385]
[1673830455285,32.74,22.916,22.891,21.46196354]
[1673830455495,32.74,22.916,22.892,20.0]
[1673830455830,20.0,22.915,22.892,20.0]
[1673830456040,32.75,22.914,22.893,23.85286385]
[1673830456255,25.9,22.91,22.892,20.0]
[1673830456564,20.0,22.908,22.889,20.0]
[1673830456768,52.76,22.907,22.889,20.0]
[1673830456981,69.76,22.907,22.881,20.0]
[1673830457396,25.98,22.9,22.882,23.85286385]
[1673830457607,20.0,22.898,22.861,20.0]
[1673830457802,20.0,22.898,22.862,112.4143]
[1673830457803,25.98,22.89,22.862,112.4143]
[1673830458020,52.78,22.889,22.863,23.85286385]
[1673830458235,20.0,22.888,22.864,20.0]
[1673830458448,49.78,22.887,22.864,20.0]
[1673830458673,20.0,22.886,22.863,20.0]
[1673830458986,20.0,22.886,22.865,21.46196354]
[1673830459177,32.77,22.897,22.87,25.75]
[1673830459380,20.0,22.896,22.87,25.75]
[1673830459593,32.76,22.905,22.871,68.86816072]
[1673830459816,32.75,22.909,22.871,46.50697354]
[1673830460027,32.75,22.909,22.872,38.46196354]
[1673830460223,32.75,22.909,22.872,74.84017253]
[1673830460435,32.75,22.909,22.873,72.79538253]
[1673830460644,32.75,22.909,22.88,25.98]
[1673830460871,32.75,22.909,22.881,37.0]
[1673830461079,20.0,22.908,22.881,102.28157971]
[1673830461292,32.76,22.907,22.882,21.46196354]
[1673830461599,20.0,22.908,22.883,20.0]
[1673830461821,25.98,22.91,22.883,165.07159718]
[1673830462031,52.75,22.909,22.884,48.86816072]
[1673830462436,52.75,22.909,22.886,20.0]
[1673830462860,32.75,22.909,22.886,47.40619718]
[1673830463068,25.98,22.91,22.887,41.46196354]
[1673830463606,25.98,22.91,22.888,41.46196354]
[1673830463816,25.98,22.91,22.89,20.0]
[1673830464018,25.98,22.91,22.891,118.811]
[1673830464223,25.98,22.91,22.892,20.0]
[1673830464552,25.98,22.91,22.893,20.0]
[1673830464953,32.74,22.919,22.893,20.0]
[1673830465178,17.0,22.918,22.895,20.0]
[1673830465401,32.74,22.917,22.895,20.0]
[1673830465593,17.0,22.916,22.894,108.9456]
[1673830465803,32.74,22.915,22.894,108.9456]
[1673830466033,17.0,22.914,22.895,20.0]
[1673830466665,32.75,22.913,22.895,20.0]
[1673830466883,32.74,22.917,22.895,20.0]
[1673830467074,32.73,22.924,22.896,58.46196354]
[1673830467279,32.73,22.924,22.9,25.75]
[1673830467611,32.72,22.929,22.902,20.0]
[1673830468142,17.462278,22.928,22.902,67.36917234]
[1673830468355,25.98,22.92,22.903,27.40619718]
[1673830468532,52.74,22.919,22.903,27.40619718]
[1673830468743,17.0,22.918,22.902,109.8758]
[1673830468954,32.73,22.927,22.903,27.40619718]
[1673830469167,32.73,22.927,22.903,71.65264667]
[1673830469168,20.0,22.926,22.903,71.65264667]
[1673830469377,32.73,22.925,22.904,20.0]
[1673830469609,20.0,22.926,22.904,20.0]
[1673830469610,20.0,22.926,22.905,17.0]
[1673830469800,20.0,22.927,22.905,182.86596072]
[1673830470010,20.0,22.927,22.906,68.86816072]
[1673830470235,20.0,22.927,22.907,17.0]
[1673830470443,20.0,22.927,22.906,68.86816072]
[1673830470657,20.0,22.927,22.906,41.46196354]
[1673830471601,20.0,22.927,22.906,65.70841303]
[1673830471805,32.73,22.926,22.905,116.9978]
[1673830472010,20.0,22.925,22.905,116.9978]
[1673830472220,49.73,22.924,22.905,116.9978]
[1673830472444,49.73,22.924,22.906,20.0]
[1673830472445,17.0,22.924,22.906,20.0]
[1673830472637,17.0,22.925,22.906,20.0]
[1673830472849,17.0,22.926,22.906,41.46196354]
[1673830473063,17.462278,22.928,22.907,27.20585852]
[1673830473280,20.0,22.927,22.908,20.0]
[1673830473496,20.0,22.927,22.908,41.46196354]
[1673830473693,20.0,22.927,22.908,68.66782206]
[1673830474529,20.0,22.927,22.908,47.20585852]
[1673830474948,20.0,22.927,22.909,17.0]
[1673830475163,20.0,22.927,22.91,20.0]
[1673830475360,20.0,22.927,22.911,17.0]
[1673830475575,20.0,22.927,22.911,47.32585852]
[1673830475787,20.0,22.927,22.912,50.32585852]
[1673830476207,20.0,22.927,22.913,30.32585852]
[1673830476440,20.0,22.927,22.914,20.0]
[1673830476837,17.462278,22.928,22.915,30.32585852]
[1673830477260,32.7,22.944,22.92,25.75]
[1673830477479,32.7,22.949,22.921,20.0]
[1673830477691,142.8885,22.959,22.921,58.46196354]
[1673830478019,25.9,22.95,22.922,52.65885074]
[1673830478214,32.7,22.949,22.921,40.0]
[1673830478749,32.7,22.949,22.922,21.46196354]
[1673830479154,20.0,22.948,22.921,40.0]
[1673830479372,32.7,22.947,22.921,40.0]
[1673830479570,20.0,22.946,22.921,40.0]
[1673830479801,32.7,22.945,22.921,40.0]
[1673830480012,49.7,22.945,22.921,40.0]
[1673830480223,49.7,22.945,22.921,66.6764382]
[1673830480423,49.7,22.945,22.921,88.13840174]
[1673830480632,20.0,22.946,22.921,88.13840174]
[1673830480851,20.0,22.948,22.921,88.13840174]
[1673830481063,43.344914,22.95,22.921,88.13840174]
[1673830481064,32.7,22.949,22.922,17.0]
[1673830481360,17.444914,22.95,22.93,25.9]
[1673830481587,17.444914,22.95,22.931,37.0]
[1673830481784,17.444914,22.95,22.931,85.13840174]
[1673830481995,17.444914,22.95,22.932,48.13840174]
[1673830482199,17.444914,22.95,22.934,20.0]
[1673830482411,17.444914,22.95,22.935,17.0]
[1673830482642,0.004914,22.95,22.935,65.13840174]
[1673830482836,0.004914,22.95,22.936,48.13840174]
[1673830483257,0.004914,22.95,22.937,26.6764382]
[1673830483898,0.004914,22.95,22.938,20.0]
[1673830486838,0.004914,22.95,22.939,26.6764382]
[1673830487371,25.9,22.96,22.941,20.0]
[1673830487580,25.9,22.96,22.943,20.0]
[1673830487814,20.0,22.959,22.941,20.0]
[1673830488004,32.68,22.958,22.94,20.0]
[1673830488193,20.0,22.957,22.94,20.0]
[1673830488403,32.69,22.956,22.94,46.6764382]
[1673830490323,25.98,22.95,22.932,129.9327]
[1673830490502,32.7,22.949,22.932,109.9327]
[1673830490716,32.7,22.949,22.933,20.0]
[1673830490717,20.0,22.948,22.933,20.0]
[1673830490928,49.7,22.947,22.933,20.0]
[1673830491135,20.0,22.946,22.933,20.0]
[1673830491367,17.0,22.945,22.933,20.0]
[1673830491768,20.0,22.946,22.933,20.0]
[1673830491993,20.0,22.948,22.933,20.0]
[1673830492206,32.7,22.947,22.933,20.0]
[1673830492406,37.0,22.946,22.927,20.0]
[1673830492617,32.7,22.945,22.927,20.0]
[1673830493343,17.0,22.944,22.927,20.0]
[1673830494537,32.7,22.943,22.927,20.0]
[1673830494859,17.0,22.942,22.926,20.0]
[1673830495064,32.71,22.941,22.926,20.0]
[1673830495374,25.9,22.94,22.925,20.0]
[1673830495578,25.9,22.94,22.923,20.0]
[1673830495989,25.9,22.94,22.924,117.8701]
[1673830496211,52.71,22.939,22.924,117.8701]
[1673830496430,52.71,22.939,22.922,116.3867]
[1673830496745,52.71,22.939,22.917,20.0]
[1673830496746,25.9,22.93,22.917,20.0]
[1673830496934,20.0,22.929,22.907,115.7976]
[1673830497143,20.0,22.929,22.914,20.0]
[1673830497663,32.72,22.935,22.914,20.0]
[1673830497880,103.92,22.96,22.92,25.9]
[1673830498109,25.98,22.95,22.922,20.0]
[1673830498627,32.7,22.949,22.923,55.0784993]
[1673830498847,25.98,22.95,22.923,55.0784993]
[1673830499038,32.68,22.957,22.925,20.0]
[1673830499238,32.68,22.957,22.926,42.03291]
[1673830499456,26.2,22.96,22.93,25.98]
[1673830499660,32.68,22.959,22.931,37.0]
[1673830499982,32.68,22.959,22.932,25.03159]
[1673830500193,32.68,22.959,22.933,22.03137]
[1673830500408,32.68,22.959,22.933,43.49333354]
[1673830500844,32.68,22.959,22.934,21.46196354]
[1673830501027,32.68,22.959,22.935,20.0]
[1673830501452,17.0,22.958,22.935,20.0]
[1673830501672,52.68,22.957,22.935,139.8131]
[1673830501870,17.0,22.956,22.935,139.8131]
[1673830502517,32.68,22.957,22.935,139.8131]
[1673830502717,26.2,22.96,22.935,139.8131]
[1673830502718,26.2,22.96,22.936,58.46196354]
[1673830503160,26.2,22.96,22.937,41.46196354]
[1673830503466,26.2,22.96,22.938,37.0]
[1673830503681,26.2,22.96,22.938,159.68026354]
[1673830503889,32.67,22.965,22.939,38.46196354]
[1673830504083,32.67,22.969,22.941,20.0]
[1673830504292,25.98,22.97,22.942,37.0]
[1673830504502,25.98,22.97,22.943,5.02918]
[1673830504713,25.98,22.97,22.944,17.0]
[1673830504917,32.66,22.974,22.944,38.46196354]
[1673830505233,32.66,22.978,22.945,133.60674028]
[1673830505477,32.66,22.978,22.946,22.02852]
[1673830505656,32.66,22.978,22.947,25.0283]
[1673830505866,208.3563941,22.979,22.947,25.0283]
[1673830505867,0.008239,22.966,22.95,25.75]
[1673830506083,0.008239,22.966,22.952,20.0]
[1673830506617,0.008239,22.966,22.953,51.56985097]
[1673830506833,0.008239,22.966,22.954,17.0]
[1673830507044,0.008239,22.966,22.955,20.0]
[1673830507257,0.008239,22.966,22.956,17.0]
[1673830507458,0.008239,22.966,22.956,38.46196354]
[1673830507671,0.008239,22.966,22.957,113.2516]
[1673830507880,0.008239,22.966,22.96,25.98]
[1673830508093,89.2719941,22.979,22.961,20.0]
[1673830508310,89.2719941,22.979,22.961,25.02524]
[1673830508720,89.2719941,22.979,22.962,17.0]
[1673830509161,89.2719941,22.979,22.963,20.0]
[1673830509370,17.414089,22.999,22.964,22.02458]
[1673830509580,17.414089,22.999,22.97,25.9]
[1673830509772,25.9,22.99,22.971,5.02305]
[1673830509982,32.64,22.989,22.965,20.0]
[1673830510187,25.98,22.98,22.965,20.0]
[1673830510634,32.64,22.988,22.965,20.0]
[1673830510843,25.83,22.99,22.966,20.0]
[1673830511031,32.63,22.997,22.967,25.02393]
[1673830511240,32.63,22.997,22.968,25.02371]
[1673830511241,20.0,22.996,22.968,25.02371]
[1673830511458,26.2,23.0,22.97,25.73]
[1673830511459,32.63,22.995,22.97,25.73]
[1673830511675,32.63,22.998,22.971,155.75485]
[1673830511881,32.63,22.998,22.973,20.0]
[1673830512098,25.83,23.01,22.973,20.0]
[1673830512099,32.61,23.008,22.98,25.9]
[1673830512306,32.61,23.009,22.981,25.02087]
[1673830512507,32.6,23.018,22.981,63.48283354]
[1673830512712,32.6,23.018,22.982,21.46196354]
[1673830512713,25.83,23.01,22.982,21.46196354]
[1673830512931,32.63,22.998,22.983,20.0]
[1673830513568,20.0,22.997,22.983,20.0]
[1673830513775,32.63,22.996,22.975,29.45004479]
[1673830513971,25.98,22.99,22.976,20.0]
[1673830514184,32.64,22.989,22.976,20.0]
[1673830514602,25.98,22.99,22.976,20.0]
[1673830514818,32.64,22.989,22.976,20.0]
[1673830515035,20.0,22.997,22.977,29.45004479]
[1673830515244,20.0,22.998,22.977,29.45004479]
[1673830515466,32.63,22.997,22.978,17.0]
[1673830515674,20.0,22.996,22.976,48.78704479]
[1673830515889,32.63,22.995,22.979,28.78704479]
[1673830516102,20.0,22.996,22.979,28.78704479]
[1673830516289,20.0,22.997,22.979,28.78704479]
[1673830516813,20.0,22.997,22.98,20.0]
[1673830517251,32.63,22.996,22.98,20.0]
[1673830517454,32.63,22.997,22.98,20.0]
[1673830517654,20.0,22.996,22.98,20.0]
[1673830517882,32.63,22.995,22.98,20.0]
[1673830518940,20.0,22.996,22.98,20.0]
[1673830519157,17.0,22.995,22.98,20.0]
[1673830519478,20.0,22.998,22.98,20.0]
[1673830519479,49.63,22.997,22.98,20.0]
[1673830519662,20.0,22.996,22.98,20.0]
[1673830519877,32.63,22.995,22.98,20.0]
[1673830520102,32.63,22.995,22.981,27.20624479]
[1673830520309,20.0,22.996,22.981,27.20624479]
[1673830520521,20.0,22.998,22.981,27.20624479]
[1673830520730,20.0,22.998,22.982,20.0]
[1673830520943,25.98,23.0,22.982,20.0]
[1673830521157,32.63,22.999,22.983,25.82737812]
[1673830521352,25.98,22.99,22.976,20.0]
[1673830521564,32.64,22.989,22.973,20.0]
[1673830521991,25.98,22.98,22.964,20.0]
[1673830522217,52.65,22.979,22.964,20.0]
[1673830522525,17.0,22.978,22.951,112.8293]
[1673830522734,52.66,22.977,22.956,24.98950212]
[1673830522942,32.66,22.977,22.958,20.0]
[1673830523267,20.0,22.979,22.959,24.98950212]
[1673830523268,32.66,22.978,22.959,24.98950212]
[1673830523669,32.66,22.978,22.959,46.45146566]
[1673830523986,25.98,22.98,22.96,105.74131511]
[1673830524193,25.9,22.99,22.96,105.74131511]
[1673830524400,52.64,22.989,22.962,20.0]
[1673830524611,25.9,22.98,22.96,20.0]
[1673830524828,52.65,22.979,22.96,20.0]
[1673830525238,52.65,22.979,22.961,48.21582566]
[1673830525447,112.104,22.988,22.961,48.21582566]
[1673830525658,32.64,22.987,22.961,48.21582566]
[1673830525868,25.9,22.99,22.962,74.629159]
[1673830525869,32.64,22.989,22.962,74.629159]
[1673830526079,32.64,22.989,22.962,110.67653944]
[1673830526289,32.64,22.989,22.963,54.629159]
[1673830526515,32.63,22.996,22.964,20.0]
[1673830526729,32.63,22.996,22.966,20.0]
[1673830526924,32.63,22.996,22.967,37.0]
[1673830527135,32.63,22.996,22.968,112.3635]
[1673830527344,32.63,22.999,22.969,37.0]
[1673830527554,32.63,22.999,22.97,30.92327]
[1673830527781,32.63,22.999,22.972,20.0]
[1673830528179,32.63,22.999,22.973,74.50934398]
[1673830528394,32.63,22.999,22.973,90.23341277]
[1673830528610,32.63,22.999,22.975,20.0]
[1673830528929,32.63,22.999,22.976,21.46196354]
[1673830529143,20.0,22.998,22.976,21.46196354]
[1673830529359,32.63,22.997,22.976,21.46196354]
[1673830529770,17.0,22.996,22.977,20.0]
[1673830529979,32.63,22.995,22.977,20.0]
[1673830530408,17.0,22.994,22.976,21.46196354]
[1673830530631,24.11,22.99,22.969,20.0]
[1673830530850,49.64,22.989,22.97,21.46196354]
[1673830531034,20.0,22.988,22.96,44.11]
[1673830531368,49.64,22.987,22.96,20.0]
[1673830531680,23.99,22.98,22.96,20.0]
[1673830531891,69.65,22.979,22.96,20.0]
[1673830532721,69.65,22.979,22.962,20.0]
[1673830533992,69.65,22.979,22.96,20.0]
[1673830534204,69.65,22.979,22.957,21.46196354]
[1673830534729,69.65,22.979,22.951,20.0]
[1673830535256,23.95,22.97,22.951,20.0]
[1673830535445,69.67,22.969,22.951,20.0]
[1673830535654,20.0,22.968,22.946,134.71356354]
[1673830535882,49.67,22.967,22.946,113.2516]
[1673830536087,24.04,22.98,22.95,32.77658945]
[1673830536300,20.0,22.979,22.95,172.71233233]
[1673830536498,20.0,22.979,22.951,21.46196354]
[1673830536708,32.66,22.978,22.952,20.0]
[1673830537124,32.66,22.978,22.953,21.46196354]
[1673830537658,23.95,22.97,22.953,21.46196354]
[1673830537864,69.67,22.969,22.946,113.2516]
[1673830538073,52.67,22.969,22.946,113.2516]
[1673830538293,32.67,22.969,22.95,21.46196354]
[1673830538504,23.95,22.97,22.95,21.46196354]
[1673830538716,20.0,22.968,22.947,20.0]
[1673830538928,32.67,22.967,22.947,20.0]
[1673830539146,20.0,22.969,22.948,21.46196354]
[1673830539553,17.0,22.968,22.949,20.0]
[1673830539877,32.67,22.967,22.949,41.46196354]
[1673830540075,20.0,22.969,22.949,41.46196354]
[1673830540284,20.0,22.969,22.95,27.13259546]
[1673830540716,41.46196354,22.978,22.951,41.46196354]
[1673830540933,32.66,22.977,22.951,41.46196354]
[1673830541245,20.0,22.976,22.952,21.46196354]
[1673830541434,32.66,22.975,22.951,47.13259546]
[1673830541645,32.65,22.979,22.953,47.13259546]
[1673830541859,20.0,22.978,22.954,17.0]
[1673830542078,32.66,22.977,22.954,65.594559]
[1673830542291,32.66,22.977,22.955,107.17781512]
[1673830542489,20.0,22.978,22.956,17.0]
[1673830542706,20.0,22.978,22.957,20.0]
[1673830542928,20.0,22.978,22.957,107.17781512]
[1673830543244,20.0,22.978,22.958,121.35960889]
[1673830543456,20.0,22.978,22.958,138.35960889]
[1673830543645,20.0,22.986,22.959,61.18325612]
[1673830543968,32.65,22.985,22.96,21.46196354]
[1673830544295,32.65,22.985,22.961,25.02524]
[1673830544509,32.64,22.989,22.963,20.0]
[1673830544818,21.46196354,22.997,22.964,17.0]
[1673830545131,32.63,22.996,22.965,5.02436]
[1673830545331,20.0,22.995,22.966,17.0]
[1673830545539,32.62,23.006,22.97,21.56]
[1673830545751,32.61,23.008,22.971,174.32305]
[1673830545958,32.61,23.009,22.972,5.02283]
[1673830546289,21.46196354,23.007,22.973,89.53658945]
[1673830546501,32.62,23.006,22.975,20.0]
[1673830546711,32.62,23.006,22.976,37.0]
[1673830546906,32.61,23.013,22.977,5.02174]
[1673830547248,21.46196354,23.01,22.978,37.0]
[1673830547438,32.61,23.009,22.979,25.0213]
[1673830547646,32.61,23.011,22.98,22.02108]
[1673830547853,20.0,23.008,22.981,5.02087]
[1673830548067,20.0,23.008,22.982,17.0]
[1673830548270,21.46196354,23.012,22.982,21.46196354]
[1673830548499,21.56,23.01,22.982,145.57349928]
[1673830548697,11.52942291,23.007,22.979,20.0]
[1673830549017,32.62,23.006,22.979,20.0]
[1673830549422,1.59688228,23.005,22.981,20.0]
[1673830549632,32.61,23.007,22.981,20.0]
[1673830549867,32.61,23.013,22.982,121.35956574]
[1673830550062,20.0,23.012,22.982,230.11606574]
[1673830550276,32.61,23.011,22.983,159.82152928]
[1673830550482,20.0,23.01,22.984,20.0]
[1673830550709,32.61,23.009,22.984,113.86804316]
[1673830550899,20.0,23.008,22.985,54.18536006]
[1673830551115,20.0,23.008,22.985,93.86804316]
[1673830551443,32.61,23.013,22.987,20.0]
[1673830551870,20.0,23.012,22.988,94.10168184]
[1673830552057,32.61,23.011,22.989,20.0]
[1673830552267,20.0,23.01,22.989,162.17709596]
[1673830552491,32.61,23.009,22.991,20.0]
[1673830552708,20.0,23.008,22.991,20.0]
[1673830552914,20.0,23.008,22.993,20.0]
[1673830553313,20.0,23.012,22.994,88.63616922]
[1673830553536,20.0,23.01,22.991,30.01109654]